fUST/lending_fUST_20260609
["ID","MTS","AMOUNT","RATE_DAILY","PERIOD"]
[424467403,1780934442000,-5000.0,9.975e-05,2]
[424467405,1780934495000,-336.30242085,9.974e-05,2]
[424467406,1780934548000,-229.21144354,9.974e-05,2]
[424467407,1780934551000,200.0,0.00023119,120]
[424467408,1780934602000,-500.0,9.974e-05,2]
[424467412,1780934911000,461.03,0.00023288,120]
[424467438,1780934961000,-626.60108494,9.578e-05,2]
[424467439,1780935014000,-686.47999774,9.579e-05,2]
[424467440,1780935026000,-686.47999774,9.579e-05,2]
[424467492,1780935034000,-4768.10569169,9.579e-05,2]
[424467491,1780935034000,-3627.04000452,9.579e-05,2]
[424467497,1780935034000,-300.0,0.00010381,2]
[424467496,1780935034000,-231.89430831,9.579e-05,2]
[424467500,1780935034000,-300.0,0.00010381,2]
[424467502,1780935034000,-144.96042801,0.00010593,2]
[424467607,1780935038000,-300.0,0.00010593,2]
[424467590,1780935038000,-300.0,0.00010593,2]
[424467592,1780935038000,-300.0,0.00010593,2]
[424467594,1780935038000,-300.0,0.00010593,2]
[424467588,1780935038000,-300.0,0.00010593,2]
[424467605,1780935038000,-300.0,0.00010593,2]
[424467580,1780935038000,-155.03957199,0.00010593,2]
[424467603,1780935038000,-300.0,0.00010593,2]
[424467596,1780935038000,-300.0,0.00010593,2]
[424467584,1780935038000,-300.0,0.00010593,2]
[424467586,1780935038000,-300.0,0.00010593,2]
[424467582,1780935038000,-300.0,0.00010593,2]
[424467609,1780935038000,-300.0,0.00010593,2]
[424467601,1780935038000,-300.0,0.00010593,2]
[424467613,1780935038000,-1000.0,0.00010959,2]
[424467599,1780935038000,-300.0,0.00010593,2]
[424467637,1780935038000,-2722.32789279,0.00011882,2]
[424467611,1780935038000,-600.0,0.00010593,2]
[424467641,1780935038000,-4839.69403163,0.00011882,2]
[424467643,1780935038000,-6125.23775878,0.00011882,2]
[424467647,1780935038000,-680.5819732,0.00011882,2]
[424467639,1780935038000,-3705.39074297,0.00011882,2]
[424467631,1780935038000,-720.0,0.00011652,2]
[424467620,1780935038000,-392.95210336,0.00011288,2]
[424467627,1780935038000,-288.01775177,0.0001147,7]
[424467645,1780935038000,-378.10109622,0.00011882,2]
[424467635,1780935038000,-1890.50548111,0.00011882,2]
[424467624,1780935038000,-340.0,0.00011415,2]
[424467629,1780935038000,-188.440331,0.00011624,2]
[424467633,1780935038000,-1209.92350791,0.00011882,2]
[424467622,1780935038000,-449.08811813,0.00011288,2]
[424467618,1780935038000,-1301.34619735,0.00011285,2]
[424467615,1780935038000,-3373.32332741,0.00011285,2]
[424467726,1780935039000,-500.0,0.0001313,2]
[424467725,1780935039000,-608.95952413,0.0001313,2]
[424467724,1780935039000,-500.0,0.0001313,2]
[424467731,1780935039000,-500.0,0.0001313,2]
[424467728,1780935039000,-500.0,0.0001313,2]
[424467730,1780935039000,-500.0,0.0001313,2]
[424467729,1780935039000,-439.84186838,0.0001313,2]
[424467721,1780935039000,-500.0,0.0001313,2]
[424467720,1780935039000,-500.0,0.0001313,2]
[424467723,1780935039000,-500.0,0.0001313,2]
[424467716,1780935039000,-500.0,0.0001313,2]
[424467733,1780935039000,-500.0,0.0001313,2]
[424467727,1780935039000,-500.0,0.0001313,2]
[424467744,1780935039000,-500.0,0.0001313,2]
[424467737,1780935039000,-500.0,0.0001313,2]
[424467732,1780935039000,-500.0,0.0001313,2]
[424467735,1780935039000,-500.0,0.0001313,2]
[424467734,1780935039000,-500.0,0.0001313,2]
[424467736,1780935039000,-500.0,0.0001313,2]
[424467740,1780935039000,-500.0,0.0001313,2]
[424467738,1780935039000,-500.0,0.0001313,2]
[424467739,1780935039000,-500.0,0.0001313,2]
[424467742,1780935039000,-500.0,0.0001313,2]
[424467741,1780935039000,-500.0,0.0001313,2]
[424467745,1780935039000,-500.0,0.0001313,2]
[424467747,1780935039000,-500.0,0.0001313,2]
[424467748,1780935039000,-397.44784931,0.0001313,2]
[424467719,1780935039000,-289.45356802,0.0001313,2]
[424467743,1780935039000,-385.54650589,0.0001313,2]
[424467700,1780935039000,-151.0,0.000131,2]
[424467667,1780935039000,-2805.4734207,0.00012507,2]
[424467702,1780935039000,-151.0,0.00013122,2]
[424467649,1780935039000,-456.82123332,0.00011882,2]
[424467652,1780935039000,-822.27821998,0.00011882,2]
[424467654,1780935039000,-1461.82794664,0.00011882,2]
[424467658,1780935039000,-3289.11287993,0.00011882,2]
[424467656,1780935039000,-2284.10616662,0.00011882,2]
[424467663,1780935039000,-536.8922784,0.00012203,2]
[424467660,1780935039000,-152.0,0.0001193,7]
[424467750,1780935039000,-368.89738444,0.0001313,2]
[424467669,1780935039000,-187.05134567,0.00012507,2]
[424467671,1780935039000,-327.61720927,0.00012507,2]
[424467675,1780935039000,-151.0,0.000126,2]
[424467685,1780935039000,-264.2116051,0.00012849,2]
[424467673,1780935039000,-152.0,0.00012592,2]
[424467708,1780935039000,-500.0,0.0001313,2]
[424467665,1780935039000,-29060.81745498,0.00012507,2]
[424467687,1780935039000,-151.0,0.00012862,2]
[424467681,1780935039000,-864.0,0.00012817,2]
[424467683,1780935039000,-500.0,0.00012829,2]
[424467689,1780935039000,-500.0,0.00012862,2]
[424467693,1780935039000,-151.0,0.000131,2]
[424467691,1780935039000,-163.65558528,0.00012983,7]
[424467698,1780935039000,-151.0,0.000131,2]
[424467696,1780935039000,-151.0,0.000131,2]
[424467710,1780935039000,-500.0,0.0001313,2]
[424467714,1780935039000,-500.0,0.0001313,2]
[424467704,1780935039000,-152.84194234,0.00013122,2]
[424467712,1780935039000,-500.0,0.0001313,2]
[424467706,1780935039000,-168.3888056,0.00013122,2]
[424467677,1780935039000,-163.65558528,0.00012729,2]
[424467751,1780935039000,-500.0,0.0001313,2]
[424467679,1780935039000,-151.0,0.000128,2]
[424467753,1780935039000,-500.0,0.0001313,2]
[424467787,1780935039000,-500.0,0.0001313,2]
[424467788,1780935039000,-1115.0,0.0001313,2]
[424467796,1780935039000,-1115.0,0.0001313,2]
[424467786,1780935039000,-1115.0,0.0001313,2]
[424467784,1780935039000,-1014.70154352,0.0001313,2]
[424467785,1780935039000,-500.0,0.0001313,2]
[424467795,1780935039000,-500.0,0.0001313,2]
[424467794,1780935039000,-1115.0,0.0001313,2]
[424467789,1780935039000,-500.0,0.0001313,2]
[424467790,1780935039000,-1115.0,0.0001313,2]
[424467791,1780935039000,-500.0,0.0001313,2]
[424467792,1780935039000,-1115.0,0.0001313,2]
[424467797,1780935039000,-500.0,0.0001313,2]
[424467809,1780935039000,-1115.0,0.0001313,2]
[424467802,1780935039000,-500.0,0.0001313,2]
[424467798,1780935039000,-1115.0,0.0001313,2]
[424467800,1780935039000,-1115.0,0.0001313,2]
[424467813,1780935039000,-1115.0,0.0001313,2]
[424467805,1780935039000,-1115.0,0.0001313,2]
[424467808,1780935039000,-1115.0,0.0001313,2]
[424467801,1780935039000,-500.0,0.0001313,2]
[424467799,1780935039000,-500.0,0.0001313,2]
[424467810,1780935039000,-1115.0,0.0001313,2]
[424467806,1780935039000,-1115.0,0.0001313,2]
[424467803,1780935039000,-1115.0,0.0001313,2]
[424467807,1780935039000,-1115.0,0.0001313,2]
[424467812,1780935039000,-1115.0,0.0001313,2]
[424467811,1780935039000,-1115.0,0.0001313,2]
[424467749,1780935039000,-500.0,0.0001313,2]
[424467793,1780935039000,-500.0,0.0001313,2]
[424467781,1780935039000,-1013.0,0.0001313,2]
[424467804,1780935039000,-249.49843832,0.0001313,2]
[424467775,1780935039000,-1013.0,0.0001313,2]
[424467776,1780935039000,-1013.0,0.0001313,2]
[424467756,1780935039000,-500.0,0.0001313,2]
[424467755,1780935039000,-500.0,0.0001313,2]
[424467757,1780935039000,-1013.0,0.0001313,2]
[424467752,1780935039000,-500.0,0.0001313,2]
[424467754,1780935039000,-615.89785627,0.0001313,2]
[424467758,1780935039000,-500.0,0.0001313,2]
[424467760,1780935039000,-240.83219892,0.0001313,2]
[424467770,1780935039000,-1013.0,0.0001313,2]
[424467771,1780935039000,-1013.0,0.0001313,2]
[424467759,1780935039000,-1013.0,0.0001313,2]
[424467761,1780935039000,-1013.0,0.0001313,2]
[424467763,1780935039000,-1013.0,0.0001313,2]
[424467767,1780935039000,-1013.0,0.0001313,2]
[424467746,1780935039000,-500.0,0.0001313,2]
[424467764,1780935039000,-1013.0,0.0001313,2]
[424467783,1780935039000,-1013.0,0.0001313,2]
[424467762,1780935039000,-1013.0,0.0001313,2]
[424467777,1780935039000,-1013.0,0.0001313,2]
[424467778,1780935039000,-1013.0,0.0001313,2]
[424467774,1780935039000,-302.30703026,0.0001313,2]
[424467780,1780935039000,-1013.0,0.0001313,2]
[424467782,1780935039000,-1013.0,0.0001313,2]
[424467772,1780935039000,-151.5,0.0001313,2]
[424467765,1780935039000,-1013.0,0.0001313,2]
[424467766,1780935039000,-1013.0,0.0001313,2]
[424467773,1780935039000,-1013.0,0.0001313,2]
[424467779,1780935039000,-1013.0,0.0001313,2]
[424467769,1780935039000,-1013.0,0.0001313,2]
[424467768,1780935039000,-1013.0,0.0001313,2]
[424467855,1780935040000,-3625.0,0.00013436,2]
[424467842,1780935040000,-554.51140481,0.0001313,2]
[424467839,1780935040000,-151.5,0.0001313,2]
[424467841,1780935040000,-500.0,0.0001313,2]
[424467853,1780935040000,-500.0,0.0001341,2]
[424467852,1780935040000,-151.0,0.000133,2]
[424467846,1780935040000,-374.04524807,0.00013253,2]
[424467854,1780935040000,-1416.0,0.00013436,2]
[424467857,1780935040000,-444.0,0.00013436,2]
[424467856,1780935040000,-2208.0,0.00013436,2]
[424467840,1780935040000,-500.0,0.0001313,2]
[424467844,1780935040000,-267.53062836,0.00013237,2]
[424467866,1780935040000,-609.0,0.00013699,2]
[424467859,1780935040000,-186.0,0.00013436,2]
[424467861,1780935040000,-152.30073465,0.0001367,2]
[424467863,1780935040000,-505.63870615,0.00013698,2]
[424467860,1780935040000,-151.0,0.000135,2]
[424467864,1780935040000,-500.0,0.00013698,2]
[424467862,1780935040000,-152.84194234,0.0001367,2]
[424467865,1780935040000,-1000.0,0.00013699,2]
[424467869,1780935040000,-609.0,0.00013699,2]
[424467872,1780935040000,-609.0,0.00013699,2]
[424467836,1780935040000,-500.0,0.0001313,2]
[424467870,1780935040000,-609.0,0.00013699,2]
[424467858,1780935040000,-744.0,0.00013436,2]
[424467838,1780935040000,-585.23438419,0.0001313,2]
[424467830,1780935040000,-500.0,0.0001313,2]
[424467851,1780935040000,-500.0,0.00013299,2]
[424467867,1780935040000,-609.0,0.00013699,2]
[424467822,1780935040000,-500.0,0.0001313,2]
[424467814,1780935040000,-1115.0,0.0001313,2]
[424467816,1780935040000,-1115.0,0.0001313,2]
[424467815,1780935040000,-1115.0,0.0001313,2]
[424467820,1780935040000,-500.0,0.0001313,2]
[424467818,1780935040000,-1115.0,0.0001313,2]
[424467817,1780935040000,-1115.0,0.0001313,2]
[424467821,1780935040000,-500.0,0.0001313,2]
[424467819,1780935040000,-1115.0,0.0001313,2]
[424467823,1780935040000,-500.0,0.0001313,2]
[424467825,1780935040000,-500.0,0.0001313,2]
[424467824,1780935040000,-500.0,0.0001313,2]
[424467826,1780935040000,-500.0,0.0001313,2]
[424467827,1780935040000,-637.99738517,0.0001313,2]
[424467831,1780935040000,-500.0,0.0001313,2]
[424467828,1780935040000,-500.0,0.0001313,2]
[424467832,1780935040000,-500.0,0.0001313,2]
[424467834,1780935040000,-500.0,0.0001313,2]
[424467835,1780935040000,-472.46185822,0.0001313,2]
[424467829,1780935040000,-500.0,0.0001313,2]
[424467833,1780935040000,-500.0,0.0001313,2]
[424467837,1780935040000,-500.0,0.0001313,2]
[424467848,1780935040000,-160.0,0.00013298,2]
[424467850,1780935040000,-180.0,0.00013298,2]
[424467849,1780935040000,-160.0,0.00013298,2]
[424467871,1780935040000,-609.0,0.00013699,2]
[424467882,1780935040000,-609.0,0.00013699,2]
[424467868,1780935040000,-609.0,0.00013699,2]
[424467905,1780935040000,-151.0,0.000143,2]
[424467915,1780935040000,-151.0,0.000148,2]
[424467904,1780935040000,-151.0,0.000143,2]
[424467909,1780935040000,-151.0,0.000145,2]
[424467912,1780935040000,-529.33408013,0.00014742,2]
[424467911,1780935040000,-336.35572979,0.00014634,2]
[424467906,1780935040000,-151.0,0.000143,2]
[424467910,1780935040000,-279.83333076,0.00014634,2]
[424467907,1780935040000,-773.38263045,0.00014377,2]
[424467908,1780935040000,-174.61919141,0.00014491,2]
[424467913,1780935040000,-529.33408013,0.00014776,2]
[424467901,1780935040000,-1838.0,0.0001411,2]
[424467914,1780935040000,-151.0,0.000148,2]
[424467917,1780935040000,-529.33408013,0.00014863,2]
[424467923,1780935040000,-39987.47242896,0.00015,2]
[424467920,1780935040000,-2075.0,0.00015,2]
[424467874,1780935040000,-609.0,0.00013699,2]
[424467918,1780935040000,-151.0,0.000149,2]
[424467922,1780935040000,-454.42618133,0.00015,2]
[424467921,1780935040000,-320.0,0.00015,2]
[424467924,1780935040000,-3414.69618065,0.00015,2]
[424467925,1780935040000,-54204.73270074,0.00015,2]
[424467926,1780935040000,-8695.3136083,0.00015,2]
[424467927,1780935040000,-11285.35953066,0.00015,2]
[424467916,1780935040000,-529.33408013,0.00014844,2]
[424467900,1780935040000,-150.0,0.0001411,2]
[424467919,1780935040000,-151.0,0.000149,2]
[424467895,1780935040000,-162.0,0.000139,2]
[424467878,1780935040000,-609.0,0.00013699,2]
[424467873,1780935040000,-609.0,0.00013699,2]
[424467875,1780935040000,-609.0,0.00013699,2]
[424467877,1780935040000,-609.0,0.00013699,2]
[424467876,1780935040000,-609.0,0.00013699,2]
[424467880,1780935040000,-609.0,0.00013699,2]
[424467890,1780935040000,-151.0,0.000137,2]
[424467879,1780935040000,-609.0,0.00013699,2]
[424467881,1780935040000,-609.0,0.00013699,2]
[424467884,1780935040000,-609.0,0.00013699,2]
[424467889,1780935040000,-616.02537443,0.00013699,2]
[424467888,1780935040000,-609.0,0.00013699,2]
[424467883,1780935040000,-609.0,0.00013699,2]
[424467886,1780935040000,-609.0,0.00013699,2]
[424467899,1780935040000,-1000.0,0.00014099,2]
[424467902,1780935040000,-151.0,0.000142,2]
[424467885,1780935040000,-609.0,0.00013699,2]
[424467903,1780935040000,-154.55347878,0.00014231,2]
[424467898,1780935040000,-151.0,0.00014,2]
[424467897,1780935040000,-500.0,0.00013963,2]
[424467894,1780935040000,-151.0,0.000138,2]
[424467893,1780935040000,-156.04844821,0.00013741,2]
[424467891,1780935040000,-151.0,0.000137,2]
[424467887,1780935040000,-609.0,0.00013699,2]
[424467892,1780935040000,-151.0,0.000137,2]
[424467896,1780935040000,-4642.30226286,0.00013912,2]
[424467928,1780935041000,-17226.94880536,0.00015,2]
[424467945,1780935043000,-18707.00000005,0.00015,2]
[424467944,1780935043000,-184.34441473,0.00015,2]
[424467943,1780935043000,-163.65558527,0.00013233,14]
[424467950,1780935046000,-334.87162935,0.0001485,2]
[424467949,1780935046000,-152.0,0.00011931,7]
[424467951,1780935097000,201.0,0.00024159,120]
[424467953,1780935344000,-500.0,9.771e-05,2]
[424467974,1780935372000,-500.0,9.771e-05,2]
[424467954,1780935372000,-500.0,9.771e-05,2]
[424467955,1780935372000,-500.0,9.771e-05,2]
[424467956,1780935372000,-500.0,9.771e-05,2]
[424467957,1780935372000,-500.0,9.771e-05,2]
[424467959,1780935372000,-500.0,9.771e-05,2]
[424467958,1780935372000,-500.0,9.771e-05,2]
[424467961,1780935372000,-500.0,9.771e-05,2]
[424467962,1780935372000,-207.75646935,9.771e-05,2]
[424467963,1780935372000,-500.0,9.771e-05,2]
[424467960,1780935372000,-500.0,9.771e-05,2]
[424467965,1780935372000,-500.0,9.771e-05,2]
[424467966,1780935372000,-500.0,9.771e-05,2]
[424467967,1780935372000,-500.0,9.771e-05,2]
[424467970,1780935372000,-500.0,9.771e-05,2]
[424467969,1780935372000,-500.0,9.771e-05,2]
[424467968,1780935372000,-500.0,9.771e-05,2]
[424467971,1780935372000,-500.0,9.771e-05,2]
[424467973,1780935372000,-500.0,9.771e-05,2]
[424467972,1780935372000,-500.0,9.771e-05,2]
[424467964,1780935372000,-500.0,9.771e-05,2]
[424467981,1780935373000,-500.0,9.771e-05,2]
[424467978,1780935373000,-500.0,9.771e-05,2]
[424467979,1780935373000,-500.0,9.771e-05,2]
[424467982,1780935373000,-500.0,9.771e-05,2]
[424467977,1780935373000,-500.0,9.771e-05,2]
[424467975,1780935373000,-500.0,9.771e-05,2]
[424467976,1780935373000,-500.0,9.771e-05,2]
[424467980,1780935373000,-292.85179012,9.771e-05,2]
[424467983,1780935373000,-500.0,9.771e-05,2]
[424467986,1780935373000,-500.0,9.771e-05,2]
[424467994,1780935373000,-445.60757824,9.772e-05,2]
[424467984,1780935373000,-500.0,9.771e-05,2]
[424467987,1780935373000,-553.78416229,9.771e-05,2]
[424467988,1780935373000,-500.0,9.771e-05,2]
[424467990,1780935373000,-500.0,9.771e-05,2]
[424467989,1780935373000,-500.0,9.771e-05,2]
[424467993,1780935373000,-500.0,9.771e-05,2]
[424467991,1780935373000,-500.0,9.771e-05,2]
[424467992,1780935373000,-500.0,9.771e-05,2]
[424467985,1780935373000,-500.0,9.771e-05,2]
[424467995,1780935397000,-320.0,9.772e-05,2]
[424467996,1780935409000,-2075.0,9.772e-05,2]
[424467997,1780935421000,-2075.0,9.772e-05,2]
[424467998,1780935434000,-84.39242176,9.772e-05,2]
[424468012,1780935712000,-500.0,9.771e-05,2]
[424468013,1780935728000,-500.0,9.771e-05,2]
[424468014,1780935746000,-500.0,9.771e-05,2]
[424468031,1780935762000,-254.76131001,9.771e-05,2]
[424468035,1780935773000,-339.30935137,9.771e-05,2]
[424468036,1780935789000,-1216.8275865,9.772e-05,2]
[424468037,1780935806000,-339.30935137,9.772e-05,2]
[424468038,1780935816000,10863.3730644,0.0001,30]
[424468039,1780935817000,-454.42618133,9.772e-05,2]
[424468040,1780935828000,-454.42618133,9.772e-05,2]
[424468041,1780935840000,-274.59199908,9.971e-05,7]
[424468042,1780935851000,-300.0,9.965e-05,2]
[424468043,1780935867000,-300.0,9.965e-05,2]
[424468044,1780935884000,-500.0,9.771e-05,2]
[424468045,1780935901000,-254.76131001,9.771e-05,2]
[424468060,1780936223000,-411.88799866,0.00010557,7]
[424468073,1780936232000,-156.42004146,9.772e-05,2]
[424468072,1780936232000,-254.76131001,9.771e-05,2]
[424468138,1780936239000,-92839.09519204,0.00012,2]
[424468139,1780936239000,-864.0,0.00012298,2]
[424468142,1780936239000,-1000.0,0.00013699,2]
[424468145,1780936239000,-181.866,0.00013938,2]
[424468137,1780936239000,-78975.59124164,0.000118,5]
[424468144,1780936239000,-3625.0,0.00013938,2]
[424468143,1780936239000,-2206.0,0.00013938,2]
[424468136,1780936239000,-620.73778133,0.00011796,2]
[424468141,1780936239000,-1000.0,0.00013527,2]
[424468152,1780936239000,-158.04,0.00014474,2]
[424468147,1780936239000,-444.0,0.00013938,2]
[424468153,1780936239000,-158.24,0.00014547,2]
[424468154,1780936239000,-500.0,0.00014652,2]
[424468146,1780936239000,-186.0,0.00013938,2]
[424468148,1780936239000,-1416.0,0.00013938,2]
[424468149,1780936239000,-751.54187707,0.00013998,2]
[424468150,1780936239000,-10366.9407782,0.00014208,2]
[424468151,1780936239000,-314.11631608,0.00014263,2]
[424468135,1780936239000,-620.73778133,0.00011796,2]
[424468140,1780936239000,-500.0,0.00013039,2]
[424468131,1780936239000,-620.73778133,0.00011796,2]
[424468119,1780936239000,-620.73778133,0.00011796,2]
[424468126,1780936239000,-620.73778133,0.00011796,2]
[424468113,1780936239000,-241.75538094,9.772e-05,2]
[424468112,1780936239000,-4843.57995854,9.772e-05,2]
[424468114,1780936239000,-600.0,0.00010163,2]
[424468115,1780936239000,-322.005,0.00010959,2]
[424468116,1780936239000,-720.0,0.0001118,2]
[424468118,1780936239000,-380.33674744,0.00011796,2]
[424468120,1780936239000,-620.73778133,0.00011796,2]
[424468117,1780936239000,-930.14339492,0.00011413,2]
[424468122,1780936239000,-620.73778133,0.00011796,2]
[424468132,1780936239000,-620.73778133,0.00011796,2]
[424468134,1780936239000,-620.73778133,0.00011796,2]
[424468133,1780936239000,-620.73778133,0.00011796,2]
[424468121,1780936239000,-620.73778133,0.00011796,2]
[424468124,1780936239000,-620.73778133,0.00011796,2]
[424468123,1780936239000,-620.73778133,0.00011796,2]
[424468125,1780936239000,-620.73778133,0.00011796,2]
[424468127,1780936239000,-620.73778133,0.00011796,2]
[424468130,1780936239000,-620.73778133,0.00011796,2]
[424468129,1780936239000,-620.73778133,0.00011796,2]
[424468128,1780936239000,-620.73778133,0.00011796,2]
[424468157,1780936239000,-151.5,0.00014652,2]
[424468168,1780936239000,-244.0,0.0001488,2]
[424468156,1780936239000,-500.0,0.00014652,2]
[424468194,1780936239000,-161.01,0.0001516,2]
[424468183,1780936239000,-500.0,0.00014926,2]
[424468185,1780936239000,-500.0,0.00014926,2]
[424468182,1780936239000,-220.69306314,0.00014926,2]
[424468155,1780936239000,-151.5,0.00014652,2]
[424468184,1780936239000,-500.0,0.00014926,2]
[424468186,1780936239000,-354.90425678,0.00014926,2]
[424468187,1780936239000,-500.0,0.00014926,2]
[424468188,1780936239000,-500.0,0.00014926,2]
[424468174,1780936239000,-248.72329838,0.00014926,2]
[424468191,1780936239000,-358.71292024,0.00015,2]
[424468190,1780936239000,-25629.058994,0.00015,2]
[424468189,1780936239000,-151.89441419,0.00014926,2]
[424468195,1780936239000,-369.04726977,0.000152,2]
[424468200,1780936239000,-369.04726977,0.000154,2]
[424468197,1780936239000,-768.57031478,0.00015201,2]
[424468198,1780936239000,-151.0,0.000153,2]
[424468199,1780936239000,-151.0,0.000153,2]
[424468201,1780936239000,-6093.20935948,0.000154,2]
[424468196,1780936239000,-9271.99341847,0.000152,2]
[424468192,1780936239000,-192.273618,0.00015068,2]
[424468178,1780936239000,-500.0,0.00014926,2]
[424468193,1780936239000,-160.15,0.00015139,2]
[424468172,1780936239000,-151.5,0.00014926,2]
[424468159,1780936239000,-151.5,0.00014652,2]
[424468160,1780936239000,-242.5,0.00014652,2]
[424468162,1780936239000,-520.30683827,0.00014652,2]
[424468176,1780936239000,-500.0,0.00014926,2]
[424468161,1780936239000,-500.0,0.00014652,2]
[424468163,1780936239000,-158.72,0.00014694,2]
[424468164,1780936239000,-151.0,0.000147,2]
[424468167,1780936239000,-1000.0,0.0001488,2]
[424468169,1780936239000,-159.21,0.00014894,2]
[424468158,1780936239000,-500.0,0.00014652,2]
[424468165,1780936239000,-255.0433411,0.00014764,2]
[424468171,1780936239000,-151.5,0.00014926,2]
[424468173,1780936239000,-191.00058308,0.00014926,2]
[424468179,1780936239000,-500.0,0.00014926,2]
[424468181,1780936239000,-500.0,0.00014926,2]
[424468180,1780936239000,-500.0,0.00014926,2]
[424468170,1780936239000,-151.5,0.00014926,2]
[424468177,1780936239000,-500.0,0.00014926,2]
[424468175,1780936239000,-500.0,0.00014926,2]
[424468166,1780936239000,-515.5884203,0.0001485,2]
[424468342,1780936298000,-152.0,0.00011603,7]
[424468343,1780936315000,-2286.27412053,0.00013701,2]
[424468357,1780936568000,255.85401792,0.00024144,120]
[424468358,1780936598000,-3689.95726819,9.48e-05,2]
[424468366,1780936957000,-873.62080151,9.29e-05,2]
[424468382,1780937315000,-5000.0,9.761e-05,2]
[424468457,1780937431000,-300.0,9.965e-05,2]
[424468438,1780937431000,-203.0,9.964e-05,2]
[424468440,1780937431000,-300.0,9.965e-05,2]
[424468442,1780937431000,-300.0,9.965e-05,2]
[424468453,1780937431000,-300.0,9.965e-05,2]
[424468444,1780937431000,-300.0,9.965e-05,2]
[424468455,1780937431000,-300.0,9.965e-05,2]
[424468459,1780937431000,-300.0,9.965e-05,2]
[424468436,1780937431000,-300.0,9.964e-05,2]
[424468449,1780937431000,-300.0,9.965e-05,2]
[424468447,1780937431000,-300.0,9.965e-05,2]
[424468451,1780937431000,-300.0,9.965e-05,2]
[424468460,1780937431000,-300.0,9.965e-05,2]
[424468465,1780937431000,-300.0,9.965e-05,2]
[424468462,1780937431000,-300.0,9.965e-05,2]
[424468469,1780937431000,-431.839745,0.00010032,2]
[424468467,1780937431000,-300.0,9.965e-05,2]
[424468445,1780937431000,-300.0,9.965e-05,2]
[424468475,1780937432000,-363.68657816,0.00010058,2]
[424468471,1780937432000,-5877.10973099,0.00010058,2]
[424468473,1780937432000,-1010.71945516,0.00010058,2]
[424468504,1780937438000,-18125.38289229,0.00010058,2]
[424468517,1780937438000,-420.0,0.0001096,2]
[424468505,1780937438000,-600.0,0.00010163,2]
[424468519,1780937438000,-720.0,0.0001118,2]
[424468509,1780937438000,-431.839745,0.00010876,2]
[424468507,1780937438000,-431.839745,0.00010454,2]
[424468511,1780937438000,-189.93628803,0.00010959,2]
[424468513,1780937438000,-8644.6252381,0.00010959,2]
[424468515,1780937438000,-217.961,0.00010959,2]
[424468526,1780937438000,-431.839745,0.00011299,2]
[424468522,1780937438000,-151.0,0.000112,2]
[424468532,1780937438000,-151.0,0.000114,2]
[424468528,1780937438000,-151.0,0.000113,2]
[424468530,1780937438000,-151.0,0.000113,2]
[424468535,1780937438000,-151.0,0.000115,2]
[424468534,1780937438000,-151.0,0.000114,2]
[424468538,1780937438000,-151.0,0.000115,2]
[424468539,1780937438000,-1897.36495638,0.00011503,2]
[424468524,1780937438000,-151.0,0.000112,2]
[424468787,1780937441000,-347.0,0.00012056,2]
[424468795,1780937441000,-500.0,0.00013299,2]
[424468793,1780937441000,-500.0,0.00012634,2]
[424468789,1780937441000,-1436.2435732,0.000121,2]
[424468792,1780937441000,-864.0,0.00012298,2]
[424468791,1780937441000,-431.839745,0.00012143,2]
[424468794,1780937441000,-500.0,0.00013224,2]